bitfinex/quotes_BTCUSD_20240718
["timestamp","ask_amount","ask_price","bid_price","bid_amount"]
[1721334465844,1.24101811,63720.0,63719.0,0.002]
[1721334468389,1.04461717,63720.0,63719.0,0.002]
[1721334468589,1.19404337,63720.0,63719.0,0.002]
[1721334469396,1.26455587,63720.0,63719.0,0.002]
[1721334471636,1.19404337,63720.0,63719.0,0.002]
[1721334472034,1.04461717,63720.0,63719.0,0.002]
[1721334472230,1.19403295,63720.0,63719.0,0.002]
[1721334474523,1.28810526,63720.0,63719.0,0.002]
[1721334474917,1.28811525,63720.0,63719.0,0.002]
[1721334477510,1.28894525,63720.0,63719.0,0.002]
[1721334478145,1.27673017,63720.0,63719.0,0.002]
[1721334478608,1.18264309,63720.0,63719.0,0.002]
[1721334478800,1.27672974,63720.0,63719.0,0.002]
[1721334480447,1.34942974,63720.0,63719.0,0.002]
[1721334481122,1.34946469,63720.0,63719.0,0.002]
[1721334481481,1.34947109,63720.0,63719.0,0.002]
[1721334482383,1.25536593,63720.0,63719.0,0.002]
[1721334482770,1.17436593,63720.0,63719.0,0.002]
[1721334483999,1.17436219,63720.0,63719.0,0.002]
[1721334484227,1.26846776,63720.0,63719.0,0.002]
[1721334484434,1.34199364,63720.0,63719.0,0.002]
[1721334484836,1.29199364,63720.0,63719.0,0.002]
[1721334485882,1.60586664,63720.0,63719.0,0.002]
[1721334486085,1.34199364,63720.0,63719.0,0.002]
[1721334486461,1.65586664,63720.0,63719.0,0.002]
[1721334488662,1.53823519,63720.0,63719.0,0.002]
[1721334489388,1.56123519,63720.0,63719.0,0.002]
[1721334489741,1.78139293,63720.0,63719.0,0.002]
[1721334490154,1.82157429,63720.0,63719.0,0.002]
[1721334490370,1.55771655,63720.0,63719.0,0.002]
[1721334490698,1.68040661,63720.0,63719.0,0.002]
[1721334491196,1.68040583,63720.0,63719.0,0.002]
[1721334493494,1.68035476,63720.0,63719.0,0.002]
[1721334493892,1.55765476,63720.0,63719.0,0.002]
[1721334494091,1.56425476,63720.0,63719.0,0.002]
[1721334496159,1.56406588,63720.0,63719.0,0.002]
[1721334498202,1.61406588,63720.0,63719.0,0.002]
[1721334498556,1.56406588,63720.0,63719.0,0.002]
[1721334499840,1.56426267,63720.0,63719.0,0.002]
[1721334500181,1.56425913,63720.0,63719.0,0.002]
[1721334500385,1.49155913,63720.0,63719.0,0.002]
[1721334500678,1.56425913,63720.0,63719.0,0.002]
[1721334502296,1.41255913,63720.0,63719.0,0.002]
[1721334502520,0.40898001,63720.0,63719.0,0.1439]
[1721334502736,0.45811375,63720.0,63719.0,0.1439]
[1721334503000,0.56693273,63720.0,63719.0,0.1439]
[1721334503217,0.52082001,63720.0,63719.0,0.1439]
[1721334503422,0.59147435,63720.0,63719.0,0.1439]
[1721334503626,0.56692366,63720.0,63719.0,0.1439]
[1721334504483,0.33933332,63720.0,63719.0,0.1439]
[1721334504679,0.40997939,63720.0,63719.0,0.1439]
[1721334504882,0.26663332,63720.0,63719.0,0.1439]
[1721334505054,0.33933332,63720.0,63719.0,0.1439]
[1721334506076,0.32321982,63720.0,63719.0,0.1439]
[1721334507433,0.3703015,63720.0,63719.0,0.1439]
[1721334507861,0.25051982,63720.0,63719.0,0.1439]
[1721334508065,0.32321982,63720.0,63719.0,0.1439]
[1721334508265,0.29760154,63720.0,63719.0,0.1439]
[1721334508401,0.2159198,63720.0,63719.0,0.1439]
[1721334508606,0.16883808,63720.0,63719.0,0.1439]
[1721334509275,0.07353,63720.0,63719.0,0.1439]
[1721334509495,0.16885771,63720.0,63719.0,0.1439]
[1721334509656,0.07353,63720.0,63719.0,0.144813]
[1721334509853,0.48016634,63720.0,63719.0,0.144813]
[1721334510065,0.84111509,63720.0,63719.0,0.144813]
[1721334510264,0.48016881,63720.0,63719.0,0.066513]
[1721334513559,0.79404181,63720.0,63719.0,0.066513]
[1721334514472,1.10791481,63720.0,63719.0,0.066513]
[1721334515103,0.79404181,63720.0,63719.0,0.066513]
[1721334515510,0.84110989,63720.0,63719.0,0.066513]
[1721334515737,0.74578882,63720.0,63719.0,0.066513]
[1721334516030,0.76833684,63720.0,63719.0,0.066513]
[1721334516351,0.81540362,63720.0,63719.0,0.066513]
[1721334517316,0.76833684,63720.0,63719.0,0.066513]
[1721334518375,0.45446384,63720.0,63719.0,0.066513]
[1721334518986,0.45456293,63720.0,63719.0,0.066513]
[1721334519395,0.45457245,63720.0,63719.0,0.066513]
[1721334519938,0.76844545,63720.0,63719.0,0.002913]
[1721334521771,1.15291589,63720.0,63719.0,0.002913]
[1721334522197,1.15292983,63720.0,63719.0,0.002913]
[1721334522701,1.17748155,63720.0,63719.0,0.002913]
[1721334524762,1.10688489,63720.0,63719.0,0.002913]
[1721334525206,1.17748194,63720.0,63719.0,0.002913]
[1721334525412,0.83905351,63720.0,63719.0,0.002913]
[1721334525651,0.76845817,63720.0,63719.0,0.002913]
[1721334526357,0.81552107,63720.0,63719.0,0.002913]
[1721334526706,0.76845817,63720.0,63719.0,0.002913]
[1721334527504,0.81552178,63720.0,63719.0,0.002913]
[1721334528123,0.22494917,63720.0,63719.0,0.143113]
[1721334528321,0.29764917,63720.0,63719.0,0.143113]
[1721334528570,0.22791174,63720.0,63719.0,0.143113]
[1721334528769,0.2976043,63720.0,63719.0,0.143113]
[1721334530791,0.4545403,63720.0,63719.0,0.062913]
[1721334531008,0.8154746,63720.0,63719.0,0.002913]
[1721334531218,1.17742964,63720.0,63719.0,0.002913]
[1721334531785,1.17746272,63720.0,63719.0,0.002913]
[1721334533463,1.10686853,63720.0,63719.0,0.002913]
[1721334534090,1.17746272,63720.0,63719.0,0.002913]
[1721334534942,0.47701672,63720.0,63719.0,0.002913]
[1721334535143,0.54954939,63720.0,63719.0,0.148813]
[1721334535293,0.47895278,63720.0,63719.0,0.148813]
[1721334536488,0.54954939,63720.0,63719.0,0.148813]
[1721334536688,1.50147178,63720.0,63719.0,0.002913]
[1721334536897,1.57447178,63720.0,63719.0,0.002913]
[1721334537783,1.57447178,63720.0,63719.0,0.001913]
[1721334537932,1.715665,63720.0,63719.0,0.001913]
[1721334538137,1.57501067,63720.0,63719.0,0.002913]
[1721334538297,1.57501067,63720.0,63719.0,0.001913]
[1721334538501,1.58008311,63720.0,63719.0,0.002913]
[1721334538900,1.58008145,63720.0,63719.0,0.002913]
[1721334539151,1.58008253,63720.0,63719.0,0.002913]
[1721334539328,0.470868,63712.0,63711.0,0.06470767]
[1721334539524,0.8690292,63712.0,63711.0,0.06470767]
[1721334540897,0.79967592,63712.0,63711.0,0.06470767]
[1721334541027,0.86910938,63712.0,63711.0,0.06470767]
[1721334541239,0.87410938,63712.0,63711.0,0.06470767]
[1721334541440,0.88010938,63712.0,63711.0,0.06570767]
[1721334542492,0.85555799,63712.0,63711.0,0.06570767]
[1721334542637,1.16946999,63712.0,63711.0,0.06570767]
[1721334543224,1.16946999,63712.0,63711.0,0.06662067]
[1721334543884,1.10003653,63712.0,63711.0,0.06662067]
[1721334544022,1.16942602,63712.0,63711.0,0.06662067]
[1721334546343,1.21649029,63712.0,63711.0,0.06662067]
[1721334547204,1.2164931,63712.0,63711.0,0.06662067]
[1721334547578,1.17310444,63712.0,63711.0,0.06662067]
[1721334547780,1.21649007,63712.0,63711.0,0.06662067]
[1721334548906,1.16942532,63712.0,63711.0,0.06662067]
[1721334550368,1.10003653,63712.0,63711.0,0.06662067]
[1721334550568,1.21636263,63712.0,63711.0,0.06662067]
[1721334550900,2.03538663,63712.0,63711.0,0.001913]
[1721334551128,2.51519677,63712.0,63711.0,0.001913]
[1721334551328,0.784977,63696.0,63695.0,0.0643]
[1721334551530,1.08132822,63696.0,63695.0,0.0643]
[1721334551639,1.40104276,63696.0,63695.0,0.0643]
[1721334552051,1.40104276,63696.0,63691.0,0.1463]
[1721334552052,0.785027,63692.0,63691.0,0.1463]
[1721334552275,1.0437422,63692.0,63691.0,0.1463]
[1721334553402,1.0178002,63692.0,63691.0,0.1463]
[1721334553574,1.04374746,63692.0,63691.0,0.1463]
[1721334554680,1.05374746,63692.0,63691.0,0.1473]
[1721334555115,1.06174746,63692.0,63691.0,0.1483]
[1721334555435,0.36102546,63692.0,63691.0,0.1483]
[1721334555646,0.04963872,63692.0,63691.0,0.1483]
[1721334556023,0.02369146,63692.0,63691.0,0.1483]
[1721334556230,0.018,63692.0,63691.0,0.1483]
[1721334557051,0.008,63692.0,63691.0,0.1473]
[1721334557253,0.008,63692.0,63691.0,0.1483]
[1721334557254,0.018,63692.0,63691.0,0.1483]
[1721334557856,0.008,63692.0,63691.0,0.1473]
[1721334558066,0.01371447,63692.0,63691.0,0.1473]
[1721334558267,0.00671447,63692.0,63691.0,0.1463]
[1721334558462,0.01571447,63692.0,63691.0,0.1473]
[1721334559037,0.01571447,63692.0,63691.0,0.1463]
[1721334559145,0.01571447,63692.0,63691.0,0.1473]
[1721334559611,0.04158552,63692.0,63691.0,0.1473]
[1721334559846,0.04158561,63692.0,63691.0,0.1473]
[1721334560387,0.01571447,63692.0,63691.0,0.1473]
[1721334560586,0.0415874,63692.0,63691.0,0.1473]
[1721334562126,0.03587293,63692.0,63691.0,0.1473]
[1721334562919,0.03587533,63692.0,63691.0,0.1473]
[1721334563136,0.01,63692.0,63691.0,0.304308]
[1721334563416,0.01,63692.0,63691.0,1.16584031]
[1721334566108,0.01,63692.0,63691.0,1.03547982]
[1721334566320,0.01,63692.0,63691.0,1.16583668]
[1721334566698,0.01,63692.0,63691.0,1.16583671]
[1721334567199,0.01,63692.0,63691.0,1.16269689]
[1721334569392,0.01,63692.0,63691.0,1.16269664]
[1721334574636,0.01,63692.0,63691.0,1.16360964]
[1721334575785,0.01,63692.0,63691.0,1.033253]
[1721334576081,0.01,63692.0,63691.0,1.16360876]
[1721334576285,0.01,63692.0,63691.0,1.033253]
[1721334576487,0.01,63692.0,63691.0,1.16360876]
[1721334576726,0.01,63692.0,63691.0,1.47762476]
[1721334577334,0.01,63692.0,63691.0,2.97762476]
[1721334577907,0.07717479,63704.0,63701.0,0.156981]
[1721334578106,0.02590606,63703.0,63702.0,0.43093476]
[1721334578924,0.07717479,63704.0,63703.0,0.156978]
[1721334579145,0.11508288,63704.0,63703.0,0.28731752]
[1721334579337,0.11508288,63704.0,63703.0,0.156978]
[1721334579723,0.11508288,63704.0,63703.0,0.13033869]
[1721334579724,0.10308288,63704.0,63703.0,0.13033869]
[1721334579935,0.10878235,63704.0,63703.0,0.13033869]
[1721334580137,0.10878235,63704.0,63702.0,0.30158]
[1721334580349,0.02590809,63703.0,63702.0,0.30058]
[1721334580550,0.02590809,63703.0,63702.0,0.43091885]
[1721334581137,0.03590809,63703.0,63702.0,0.43191885]
[1721334582332,0.03590809,63703.0,63702.0,0.43291965]
[1721334582333,0.0449034,63703.0,63702.0,0.43291965]
[1721334583798,0.0449034,63703.0,63702.0,0.74688065]
[1721334585603,0.0449129,63703.0,63702.0,0.616541]
[1721334585808,0.0449129,63703.0,63702.0,0.74688054]
[1721334586012,0.0449132,63703.0,63702.0,0.74688134]
[1721334588564,0.0449132,63703.0,63702.0,0.43292034]
[1721334588783,0.0449132,63703.0,63702.0,0.30258]
[1721334588784,0.04491481,63703.0,63702.0,0.30258]
[1721334588984,0.04491481,63703.0,63702.0,0.35132077]
[1721334589327,0.04491481,63703.0,63702.0,0.66528177]
[1721334593688,0.04492373,63703.0,63702.0,0.66528177]
[1721334594364,0.04492373,63703.0,63702.0,0.81728177]
[1721334594580,0.019,63703.0,63702.0,2.0323828]
[1721334594742,0.019,63703.0,63702.0,3.75902291]
[1721334594941,0.019,63703.0,63702.0,4.10698312]
[1721334595123,0.019,63703.0,63702.0,4.17206765]
[1721334595323,0.019,63703.0,63702.0,4.10689035]
[1721334595569,0.01,63703.0,63702.0,4.10589673]
[1721334595775,0.01,63703.0,63702.0,4.19965372]
[1721334595973,0.011,63703.0,63702.0,4.21365372]
[1721334596171,0.001,63703.0,63702.0,4.11889441]
[1721334596346,0.001,63703.0,63702.0,4.18918677]
[1721334596548,0.001,63703.0,63702.0,4.19018546]
[1721334596549,0.01,63703.0,63702.0,4.19018546]
[1721334597099,0.001,63703.0,63702.0,4.18918546]
[1721334597337,0.001,63703.0,63702.0,4.1188931]
[1721334597584,0.002,63703.0,63702.0,3.85421931]
[1721334598098,0.002,63703.0,63702.0,4.20215148]
[1721334598307,0.002,63703.0,63702.0,3.85420414]
[1721334598508,0.002,63703.0,63702.0,3.78394977]
[1721334601382,0.002,63703.0,63702.0,3.85423129]
[1721334601556,0.002,63703.0,63702.0,3.78394977]
[1721334601765,0.002,63703.0,63702.0,3.73394977]
[1721334601981,0.002,63703.0,63702.0,3.55732798]
[1721334602162,0.002,63703.0,63702.0,3.53850335]
[1721334602761,0.002,63703.0,63702.0,2.03850335]
[1721334603372,0.002,63703.0,63702.0,2.40246435]
[1721334603569,0.00083,63711.0,63710.0,1.462649]
[1721334603775,0.00083,63711.0,63710.0,2.06092835]
[1721334604011,0.00083,63711.0,63710.0,3.51092313]
[1721334604444,0.00083,63711.0,63710.0,3.51092182]
[1721334606361,0.00083,63711.0,63710.0,1.46991808]
[1721334606783,0.00083,63711.0,63710.0,1.54261808]
[1721334607096,0.00083,63711.0,63710.0,1.5426272]
[1721334607295,0.00083,63711.0,63710.0,1.5706272]
[1721334607716,0.00083,63711.0,63710.0,1.5426272]
[1721334607915,0.00083,63711.0,63710.0,1.5516272]
[1721334608118,0.00083,63711.0,63710.0,1.5596272]
[1721334608746,0.00083,63711.0,63710.0,2.02793094]
[1721334608983,0.00083,63711.0,63710.0,2.07793094]
[1721334609497,0.00083,63711.0,63710.0,3.57793094]
[1721334609680,0.00083,63711.0,63710.0,3.56993094]
[1721334610127,0.00083,63711.0,63710.0,3.58193094]
[1721334610305,0.00083,63711.0,63710.0,3.50921525]
[1721334610473,0.00083,63711.0,63710.0,3.52291525]
[1721334610879,0.00083,63711.0,63710.0,3.53691525]
[1721334611748,0.00083,63711.0,63710.0,3.58691525]
[1721334613357,0.00083,63711.0,63710.0,3.40663074]
[1721334613549,0.00083,63711.0,63710.0,3.53691732]
[1721334614302,0.00083,63711.0,63710.0,3.53691731]
[1721334615690,0.00083,63711.0,63710.0,3.73234717]
[1721334615905,0.00083,63711.0,63710.0,3.53691731]
[1721334616097,0.00083,63711.0,63710.0,3.73234717]
[1721334616239,0.00083,63711.0,63710.0,3.53691731]
[1721334616440,0.00083,63711.0,63710.0,3.73234717]
[1721334616650,0.00083,63711.0,63710.0,3.53691719]
[1721334617294,0.00083,63711.0,63710.0,3.73234687]
[1721334619720,0.00083,63711.0,63710.0,3.53691427]
[1721334619921,0.00083,63711.0,63710.0,3.73233957]
[1721334620235,0.00083,63711.0,63710.0,2.23233957]
[1721334620441,0.00083,63711.0,63710.0,2.27913413]
[1721334620758,0.00083,63711.0,63710.0,3.73233957]
[1721334621363,0.00083,63711.0,63710.0,3.77913413]
[1721334622748,0.00083,63711.0,63710.0,3.53691427]
[1721334622952,0.00083,63711.0,63710.0,3.77914115]
[1721334623266,0.00083,63711.0,63710.0,3.4534396]
[1721334623594,0.00083,63711.0,63710.0,3.84428532]
[1721334624013,0.00083,63711.0,63710.0,3.84428466]
[1721334624432,0.00083,63711.0,63710.0,3.96032791]
[1721334626117,0.00083,63711.0,63710.0,3.83004662]
[1721334626291,0.00083,63711.0,63710.0,3.96032851]
[1721334627271,0.00083,63711.0,63710.0,3.9602752]
[1721334627828,0.00083,63711.0,63710.0,3.6463532]
[1721334627999,0.00083,63711.0,63710.0,3.48350109]
[1721334628383,0.00083,63711.0,63710.0,3.79742309]
[1721334628582,0.00083,63711.0,63710.0,3.84422857]
[1721334629202,0.00083,63711.0,63710.0,3.40657743]
[1721334629410,0.00083,63711.0,63710.0,3.84424378]
[1721334629630,0.00083,63711.0,63710.0,3.71395855]
[1721334629954,0.00083,63711.0,63710.0,3.84424381]
[1721334630179,0.00083,63711.0,63710.0,3.79743321]
[1721334630297,0.00083,63711.0,63710.0,3.84424381]
[1721334632465,0.00083,63711.0,63710.0,3.51853919]
[1721334632669,0.00083,63711.0,63710.0,3.84425482]
[1721334632873,0.00083,63711.0,63710.0,3.77911241]
[1721334633053,0.00083,63711.0,63710.0,3.84425552]
[1721334634499,0.00083,63711.0,63710.0,3.79743609]
[1721334635578,0.07717479,63716.0,63715.0,1.098639]
[1721334635777,0.07717479,63716.0,63715.0,1.59705452]
[1721334636322,0.07717479,63716.0,63715.0,3.09705452]
[1721334636728,0.07717479,63716.0,63715.0,3.10405452]
[1721334636929,0.07717479,63716.0,63715.0,3.11305452]
[1721334637429,0.07717479,63716.0,63715.0,1.61305452]
[1721334638907,0.07717479,63716.0,63715.0,1.61305457]
[1721334639345,0.07717479,63716.0,63715.0,1.65991288]
[1721334640396,0.07717479,63716.0,63715.0,1.96095632]
[1721334641449,0.07717479,63716.0,63715.0,3.46095632]
[1721334641656,0.07800479,63716.0,63715.0,3.46095632]
[1721334641860,0.07800479,63716.0,63715.0,2.787339]
[1721334642059,0.07800479,63716.0,63715.0,3.33067008]
[1721334642301,0.07800479,63716.0,63715.0,3.55484588]
[1721334642504,0.07800479,63716.0,63715.0,3.55485144]
[1721334643083,0.07800479,63716.0,63715.0,3.55485242]
[1721334643285,0.07800479,63716.0,63715.0,1.54035455]
[1721334643681,0.07800479,63716.0,63715.0,1.5873131]
[1721334645161,0.07800479,63716.0,63715.0,1.5873347]
[1721334645405,0.07800479,63716.0,63715.0,1.54037468]
[1721334645621,0.00083,63716.0,63715.0,1.54037468]
[1721334646126,0.00083,63716.0,63715.0,1.58733722]
[1721334646513,0.00083,63716.0,63715.0,1.66003722]
[1721334646751,0.00083,63716.0,63715.0,1.68351472]
[1721334647991,0.00083,63716.0,63715.0,1.61307468]
[1721334648405,0.00083,63716.0,63715.0,1.68351485]
[1721334648604,0.00083,63716.0,63715.0,2.03143125]
[1721334649035,0.00083,63716.0,63715.0,1.68351485]
[1721334649267,0.00083,63716.0,63715.0,1.54036908]
[1721334649441,0.00083,63716.0,63715.0,1.61081485]
[1721334649772,0.00083,63716.0,63715.0,2.14036908]
[1721334650409,0.00083,63716.0,63715.0,2.15917516]
[1721334650628,0.00083,63716.0,63715.0,2.14036908]
[1721334651560,0.00083,63716.0,63715.0,1.814639]
[1721334651740,0.00083,63716.0,63715.0,2.21082365]
[1721334651939,0.00083,63716.0,63715.0,2.14037142]
[1721334652139,0.00083,63716.0,63715.0,2.01538543]
[1721334652343,0.00083,63716.0,63715.0,2.21307283]
[1721334652891,0.00083,63716.0,63715.0,2.28352573]
[1721334653106,0.00083,63716.0,63715.0,2.21307283]
[1721334653423,0.00083,63716.0,63715.0,2.28352573]
[1721334654072,0.00083,63716.0,63715.0,2.56099407]
[1721334654390,0.00083,63716.0,63715.0,2.63145046]
[1721334654748,0.00083,63716.0,63715.0,2.30571663]
[1721334654928,0.00083,63716.0,63715.0,2.63145039]
[1721334656844,0.00083,63716.0,63715.0,2.65026349]
[1721334657016,0.00083,63716.0,63715.0,2.23188586]
[1721334657439,0.14203,63716.0,63715.0,1.53139186]
[1721334657792,0.14203,63716.0,63715.0,1.57837941]
[1721334657991,0.14203,63716.0,63715.0,1.57838271]
[1721334658400,0.14203,63716.0,63715.0,1.36412625]
[1721334659332,0.14203,63716.0,63715.0,1.23382708]
[1721334659519,0.14203,63716.0,63715.0,1.36412455]
[1721334660886,0.14203,63716.0,63715.0,1.186845]
[1721334661075,0.14203,63716.0,63715.0,1.36411884]
[1721334661408,0.14203,63716.0,63715.0,1.186845]
[1721334661577,0.07943,63716.0,63715.0,1.678011]
[1721334661924,0.00083,63716.0,63715.0,1.678011]
[1721334662133,0.00083,63716.0,63715.0,2.128008]
[1721334662734,0.00083,63716.0,63715.0,2.34226071]
[1721334663380,0.00083,63716.0,63715.0,4.20560028]
[1721334663553,0.00083,63716.0,63715.0,4.16924566]
[1721334663753,0.00083,63716.0,63715.0,4.27071667]
[1721334664013,0.00083,63716.0,63715.0,4.49492425]
[1721334664635,0.00083,63716.0,63715.0,4.41372425]
[1721334664938,0.00083,63716.0,63715.0,4.34102425]
[1721334666891,0.00083,63716.0,63715.0,4.3410326]
[1721334669949,0.00083,63716.0,63715.0,3.5734687]
[1721334670108,0.00083,63716.0,63715.0,4.14560626]
[1721334670304,0.00083,63716.0,63715.0,4.33204097]
[1721334670654,0.00083,63716.0,63715.0,4.33204285]
[1721334670859,0.00083,63716.0,63715.0,2.84504285]
[1721334671065,0.00083,63716.0,63715.0,2.78164393]
[1721334671207,0.00083,63716.0,63715.0,1.04571952]
[1721334671408,0.00083,63716.0,63715.0,1.19566752]
[1721334671409,0.02700051,63716.0,63715.0,1.19566752]
[1721334671611,0.02700051,63716.0,63715.0,1.50956452]
[1721334671856,0.02700051,63716.0,63715.0,1.51656452]
[1721334672215,0.02700051,63716.0,63715.0,1.50956452]
[1721334672415,0.02700051,63716.0,63715.0,1.83046152]
[1721334673016,0.02700051,63716.0,63715.0,1.81746152]
[1721334673221,0.02708236,63716.0,63715.0,1.81746152]
[1721334673420,0.02708236,63716.0,63715.0,1.82646152]
[1721334675334,0.02708236,63716.0,63715.0,2.14035852]
[1721334676165,0.02708236,63716.0,63715.0,2.12435852]
[1721334676437,0.02708236,63716.0,63715.0,1.9940687]
[1721334676643,0.02708236,63716.0,63715.0,2.14237281]
[1721334678456,0.16468236,63716.0,63715.0,1.82847581]
[1721334678841,0.07673,63716.0,63715.0,1.82847581]
[1721334679583,0.07673,63716.0,63715.0,1.6981717]
[1721334679809,0.10290975,63716.0,63715.0,1.6981717]
[1721334680241,0.10290975,63716.0,63715.0,1.82847956]
[1721334680242,0.02704074,63716.0,63715.0,1.82847956]
[1721334681635,0.02704074,63716.0,63715.0,1.63304986]
[1721334682798,0.00083,63716.0,63715.0,1.502742]
[1721334682970,0.02703447,63716.0,63715.0,1.63304766]
[1721334686116,0.02703173,63716.0,63715.0,1.502742]
[1721334686323,0.02703173,63716.0,63715.0,1.63304721]
[1721334688198,0.02703173,63716.0,63715.0,0.84830521]
[1721334688417,0.02703173,63716.0,63715.0,1.00525321]
[1721334689208,0.02703173,63716.0,63715.0,1.188845]
[1721334689209,0.02698753,63716.0,63715.0,1.188845]
[1721334689527,0.02698753,63716.0,63715.0,1.31915627]
[1721334689731,0.00083,63716.0,63715.0,1.188845]
[1721334689938,0.0269881,63716.0,63715.0,1.31915778]
[1721334691321,0.0269881,63716.0,63715.0,1.63305478]
[1721334692691,0.02695571,63716.0,63715.0,1.63304767]
[1721334693758,0.02695571,63716.0,63715.0,2.08934467]
[1721334693935,0.00083,63716.0,63715.0,2.08934467]
[1721334695809,0.00083,63716.0,63715.0,1.959039]
[1721334695981,0.00083,63716.0,63715.0,2.0893347]
[1721334696556,0.02691864,63716.0,63715.0,1.9469347]
[1721334699034,0.02694933,63716.0,63715.0,1.94694147]
[1721334699424,0.02694933,63716.0,63715.0,1.94694133]
[1721334699624,0.00083,63716.0,63715.0,1.94694133]
[1721334699884,0.02696144,63716.0,63715.0,1.94694133]
[1721334700432,0.00083,63716.0,63715.0,1.94694133]
[1721334700626,0.02695866,63716.0,63715.0,1.94694133]
[1721334701793,0.00083,63716.0,63715.0,2.08774133]
[1721334701994,0.00083,63716.0,63715.0,2.33011164]
[1721334702220,0.00083,63716.0,63715.0,2.33011305]
[1721334702422,0.00083,63716.0,63715.0,2.28317076]
[1721334702671,0.00083,63716.0,63715.0,2.33011408]
[1721334703849,0.00083,63716.0,63715.0,2.34890812]
[1721334704257,0.00083,63716.0,63715.0,2.0877317]
[1721334705067,0.00083,63716.0,63715.0,1.6330347]
[1721334705266,0.02694891,63716.0,63715.0,1.502742]
[1721334705440,0.02694891,63716.0,63715.0,1.63303808]
[1721334706897,0.02694891,63716.0,63715.0,1.94693508]
[1721334708082,0.00083,63716.0,63715.0,1.94693508]
[1721334708289,0.00083,63716.0,63715.0,1.816639]
[1721334708519,0.00083,63716.0,63715.0,1.94693936]
[1721334708878,0.00083,63716.0,63715.0,1.94693918]
[1721334711300,0.00083,63716.0,63715.0,1.63304218]
[1721334711700,0.00083,63716.0,63715.0,1.63304512]
[1721334711952,0.02698299,63716.0,63715.0,1.63304512]
[1721334712751,0.02698299,63716.0,63715.0,1.94694212]
[1721334712950,0.00083,63716.0,63715.0,1.94694212]
[1721334713370,0.02699818,63716.0,63715.0,1.94694212]
[1721334713807,0.00083,63716.0,63715.0,1.94694212]
[1721334714952,0.00083,63716.0,63715.0,1.946939]
[1721334716825,0.00083,63716.0,63715.0,1.99387238]
[1721334718067,0.13733,63716.0,63715.0,1.319145]
[1721334718235,0.16345709,63716.0,63715.0,1.31914884]
[1721334718431,0.13733,63716.0,63715.0,0.718]
[1721334718637,0.16334954,63716.0,63715.0,0.84831114]
[1721334718866,0.16334954,63716.0,63715.0,1.00525914]
[1721334719037,0.16334921,63716.0,63715.0,1.00525827]
[1721334719532,0.16335001,63716.0,63715.0,1.0052604]
[1721334720399,0.10245001,63716.0,63715.0,1.3191574]
[1721334720964,0.07643,63716.0,63715.0,1.3191574]
[1721334721180,0.10240335,63716.0,63715.0,1.3191574]
[1721334721992,0.16650335,63716.0,63715.0,1.0052604]
[1721334723823,0.16650687,63716.0,63715.0,1.31915442]
[1721334724496,0.02680687,63716.0,63715.0,1.31915442]
[1721334725521,0.02680687,63716.0,63715.0,1.63305142]
[1721334727243,0.02681754,63716.0,63715.0,1.63305087]
[1721334727435,0.00083,63716.0,63715.0,1.502742]
[1721334727635,0.00083,63716.0,63715.0,1.63305087]
[1721334728035,0.02682447,63716.0,63715.0,1.63305087]
[1721334730325,0.02682086,63716.0,63715.0,1.63305111]
[1721334733553,0.02682086,63716.0,63715.0,1.6330514]
[1721334733554,0.02680961,63716.0,63715.0,1.6330514]
[1721334736784,0.02681588,63716.0,63715.0,1.63305169]
[1721334737186,0.02681589,63716.0,63715.0,1.63305172]
[1721334739991,0.02681042,63716.0,63715.0,1.63305172]
[1721334743176,0.00083,63716.0,63715.0,1.502742]
[1721334743421,0.02680998,63716.0,63715.0,1.63305172]
[1721334746384,0.00083,63716.0,63715.0,1.502742]
[1721334746702,0.02681384,63716.0,63715.0,2.02784918]
[1721334747061,0.02682697,63716.0,63715.0,2.16604805]
[1721334747185,0.00083,63716.0,63715.0,2.16604805]
[1721334747564,0.00083,63716.0,63715.0,2.42733527]
[1721334747726,0.00083,63716.0,63715.0,2.09334805]
[1721334748335,0.02682438,63716.0,63715.0,2.09334805]
[1721334749499,0.00083,63716.0,63715.0,1.816639]
[1721334749696,0.02679979,63716.0,63715.0,1.94693852]
[1721334752221,0.02679979,63716.0,63715.0,2.09443852]
[1721334752862,0.02686312,63716.0,63715.0,2.09444349]
[1721334756083,0.02686684,63716.0,63715.0,2.0944419]
[1721334756635,0.02686684,63716.0,63715.0,1.63304529]
[1721334756636,0.02686699,63716.0,63715.0,1.63304529]
[1721334759065,0.02686699,63716.0,63715.0,1.70804529]
[1721334759217,0.02686699,63716.0,63715.0,1.639142]
[1721334759218,0.00083,63716.0,63715.0,1.639142]
[1721334759426,0.0268437,63716.0,63715.0,1.76944829]
[1721334759854,0.0268437,63716.0,63715.0,2.08334529]
[1721334760027,0.0268437,63716.0,63715.0,1.76944829]
[1721334760245,0.0268437,63716.0,63715.0,2.08334529]
[1721334760452,0.0268437,63716.0,63715.0,1.76944829]
[1721334762397,0.00083,63716.0,63715.0,1.639142]
[1721334762572,0.02683459,63716.0,63715.0,1.76944844]
[1721334765568,0.00083,63716.0,63715.0,1.76944844]
[1721334765775,0.02682681,63716.0,63715.0,1.76944844]
[1721334765981,0.00083,63716.0,63715.0,1.639142]
[1721334766130,0.00083,63716.0,63715.0,1.76944844]
[1721334766510,0.02682975,63716.0,63715.0,1.76944844]
[1721334768733,0.00083,63716.0,63715.0,1.639142]
[1721334768917,0.00083,63716.0,63715.0,1.76944844]
[1721334769125,0.02682764,63716.0,63715.0,1.76944844]
[1721334769925,0.02682764,63716.0,63715.0,2.15604544]
[1721334771979,0.00083,63716.0,63715.0,2.025739]
[1721334772193,0.00083,63716.0,63715.0,2.15604167]
[1721334772395,0.02684192,63716.0,63715.0,2.15604167]
[1721334774725,0.02684192,63716.0,63715.0,2.20310318]
[1721334775149,0.02684192,63716.0,63715.0,2.025739]
[1721334775319,0.02681405,63716.0,63715.0,2.20309316]
[1721334775526,0.02681405,63716.0,63715.0,2.025739]
[1721334775728,0.02681415,63716.0,63715.0,2.20308798]
[1721334776155,0.02681108,63716.0,63715.0,2.20308849]
[1721334778439,0.02681026,63716.0,63715.0,2.20307944]
[1721334779801,0.02681026,63716.0,63715.0,1.63304371]
[1721334779802,0.02681061,63716.0,63715.0,1.63304371]
[1721334781290,0.0267951,63716.0,63715.0,1.63304784]
[1721334784074,0.00083,63716.0,63715.0,1.502742]
[1721334784274,0.00083,63716.0,63715.0,1.6330481]